[Event "Late-Titled-Tuesday-Blitz-June-18-2024"]
[Site "Chess.com"]
[Date "2024.06.18"]
[Round "4"]
[White "IngOscarArdila"]
[Black "MaestroCheck"]
[Result "0-1"]
[WhiteElo "2424"]
[BlackElo "2614"]
[TimeControl "180+1"]
[EndTime "14:43:56 PDT"]
[Termination "MaestroCheck won on time"]

1. d4 {[%clk 0:02:59.8]} 1... d5 {[%clk 0:02:58.1]} 2. c4 {[%clk 0:02:59.9]}
2... c6 {[%clk 0:02:58]} 3. cxd5 {[%clk 0:02:58.8]} 3... cxd5 {[%clk 0:02:58.9]}
4. Nc3 {[%clk 0:02:59.2]} 4... Nc6 {[%clk 0:02:58.7]} 5. Nf3 {[%clk 0:02:59.8]}
5... Nf6 {[%clk 0:02:57.9]} 6. Bf4 {[%clk 0:02:58.8]} 6... a6 {[%clk 0:02:58.3]}
7. e3 {[%clk 0:02:59.1]} 7... Bg4 {[%clk 0:02:55.1]} 8. Be2 {[%clk 0:02:58.8]}
8... e6 {[%clk 0:02:54.5]} 9. h3 {[%clk 0:02:58.7]} 9... Bh5 {[%clk 0:02:53.7]}
10. O-O {[%clk 0:02:58.9]} 10... Bd6 {[%clk 0:02:52.2]} 11. Bxd6 {[%clk
0:02:58.8]} 11... Qxd6 {[%clk 0:02:53.1]} 12. Rc1 {[%clk 0:02:58.8]} 12... O-O
{[%clk 0:02:53]} 13. a3 {[%clk 0:02:59]} 13... Rac8 {[%clk 0:02:44.1]} 14. Na4
{[%clk 0:02:58.6]} 14... Rc7 {[%clk 0:02:36.2]} 15. Nc5 {[%clk 0:02:53.7]} 15...
Rfc8 {[%clk 0:02:35.9]} 16. Qd2 {[%clk 0:02:49.2]} 16... Ne4 {[%clk 0:02:21.8]}
17. Nxe4 {[%clk 0:02:48.8]} 17... dxe4 {[%clk 0:02:22.7]} 18. Nh2 {[%clk
0:02:45.4]} 18... Bxe2 {[%clk 0:02:18]} 19. Qxe2 {[%clk 0:02:43.6]} 19... Na5
{[%clk 0:02:18.2]} 20. Rxc7 {[%clk 0:02:37.4]} 20... Rxc7 {[%clk 0:02:19.1]} 21.
Ng4 {[%clk 0:02:31.5]} 21... f6 {[%clk 0:02:11.2]} 22. f3 {[%clk 0:02:20.8]}
22... exf3 {[%clk 0:02:05.3]} 23. Qxf3 {[%clk 0:02:16.4]} 23... Nc4 {[%clk
0:02:03.3]} 24. Qf2 {[%clk 0:02:10.9]} 24... b5 {[%clk 0:01:50.1]} 25. e4 {[%clk
0:02:08.2]} 25... Rd7 {[%clk 0:01:49.3]} 26. Rd1 {[%clk 0:02:06.9]} 26... Qc6
{[%clk 0:01:42.8]} 27. Qe2 {[%clk 0:01:56.4]} 27... Qb6 {[%clk 0:01:33.4]} 28.
Qf2 {[%clk 0:01:51.6]} 28... Nd6 {[%clk 0:01:31.5]} 29. Qe3 {[%clk 0:01:40]}
29... Nc4 {[%clk 0:01:09.9]} 30. Qf2 {[%clk 0:01:37.9]} 30... h5 {[%clk
0:01:07.9]} 31. Nh2 {[%clk 0:01:35.8]} 31... e5 {[%clk 0:00:57.4]} 32. Nf3
{[%clk 0:01:34.6]} 32... exd4 {[%clk 0:00:51.2]} 33. Rxd4 {[%clk 0:01:30.8]}
33... Rxd4 {[%clk 0:00:50.3]} 34. Nxd4 {[%clk 0:01:31]} 34... Ne5 {[%clk
0:00:46.7]} 35. b3 {[%clk 0:01:07.6]} 35... Qc5 {[%clk 0:00:30.3]} 36. a4 {[%clk
0:01:04.4]} 36... b4 {[%clk 0:00:24.8]} 37. Nf5 {[%clk 0:00:59.9]} 37... Qc1+
{[%clk 0:00:23.9]} 38. Kh2 {[%clk 0:00:57.9]} 38... Qc3 {[%clk 0:00:20.3]} 39.
Qa7 {[%clk 0:00:53.8]} 39... Nf7 {[%clk 0:00:18.9]} 40. Qe7 {[%clk 0:00:51.5]}
40... Qe5+ {[%clk 0:00:18.3]} 41. Qxe5 {[%clk 0:00:51.5]} 41... Nxe5 {[%clk
0:00:19]} 42. Kg3 {[%clk 0:00:50]} 42... Kf7 {[%clk 0:00:19]} 43. Kf4 {[%clk
0:00:47.8]} 43... Nd3+ {[%clk 0:00:19.3]} 44. Ke3 {[%clk 0:00:47]} 44... Nc5
{[%clk 0:00:19.8]} 45. Nd4 {[%clk 0:00:46.4]} 45... g6 {[%clk 0:00:19.1]} 46.
Kf4 {[%clk 0:00:45.5]} 46... Ke8 {[%clk 0:00:18.7]} 47. e5 {[%clk 0:00:45.4]}
47... Kf7 {[%clk 0:00:16.7]} 48. exf6 {[%clk 0:00:44.4]} 48... Kxf6 {[%clk
0:00:17.6]} 49. g4 {[%clk 0:00:44.3]} 49... g5+ {[%clk 0:00:18.1]} 50. Ke3
{[%clk 0:00:42.6]} 50... h4 {[%clk 0:00:18.4]} 51. Nc6 {[%clk 0:00:35.8]} 51...
Nxb3 {[%clk 0:00:18.3]} 52. Nxb4 {[%clk 0:00:35.9]} 52... a5 {[%clk 0:00:18.6]}
53. Nc6 {[%clk 0:00:35.4]} 53... Nc5 {[%clk 0:00:18.5]} 54. Nxa5 {[%clk
0:00:33.1]} 54... Nxa4 {[%clk 0:00:19]} 55. Kd4 {[%clk 0:00:31.3]} 55... Nb2
{[%clk 0:00:17.5]} 56. Nc6 {[%clk 0:00:27.2]} 56... Nd1 {[%clk 0:00:17.8]} 57.
Ne5 {[%clk 0:00:19.4]} 57... Nf2 {[%clk 0:00:17.4]} 58. Nd7+ {[%clk 0:00:19.5]}
58... Ke6 {[%clk 0:00:17.6]} 59. Nc5+ {[%clk 0:00:19.2]} 59... Kf7 {[%clk
0:00:14.4]} 60. Ne4 {[%clk 0:00:19.1]} 60... Nxh3 {[%clk 0:00:14.7]} 61. Ke5
{[%clk 0:00:18.2]} 61... Kg6 {[%clk 0:00:15.3]} 62. Ke6 {[%clk 0:00:17.2]} 62...
Nf4+ {[%clk 0:00:15.4]} 63. Ke5 {[%clk 0:00:16.3]} 63... h3 {[%clk 0:00:15.9]}
64. Ng3 {[%clk 0:00:14]} 64... h2 {[%clk 0:00:15.9]} 65. Ke4 {[%clk 0:00:13.9]}
65... Ne2 {[%clk 0:00:15.7]} 66. Nh1 {[%clk 0:00:11.8]} 66... Kf6 {[%clk
0:00:14.4]} 67. Kf3 {[%clk 0:00:11.4]} 67... Nd4+ {[%clk 0:00:12.1]} 68. Kg3
{[%clk 0:00:10.7]} 68... Ke5 {[%clk 0:00:12.7]} 69. Kxh2 {[%clk 0:00:10.7]}
69... Kf4 {[%clk 0:00:13.4]} 70. Kh3 {[%clk 0:00:09]} 70... Nf3 {[%clk
0:00:12.6]} 71. Nf2 {[%clk 0:00:08.9]} 71... Ng1+ {[%clk 0:00:12.9]} 72. Kg2
{[%clk 0:00:09.2]} 72... Ne2 {[%clk 0:00:13.6]} 73. Kh3 {[%clk 0:00:06.7]} 73...
Kf3 {[%clk 0:00:13.6]} 74. Nd3 {[%clk 0:00:05.2]} 74... Nf4+ {[%clk 0:00:13.7]}
75. Nxf4 {[%clk 0:00:03.6]} 75... Kxf4 {[%clk 0:00:06.6]} 76. Kh2 {[%clk
0:00:03.6]} 76... Kf3 {[%clk 0:00:06.4]} 77. Kh3 {[%clk 0:00:02.8]} 77... Kf2
{[%clk 0:00:06.1]} 78. Kh2 {[%clk 0:00:02.8]} 78... Ke3 {[%clk 0:00:06.1]} 79.
Kg3 {[%clk 0:00:02.3]} 79... Kd4 {[%clk 0:00:06.2]} 80. Kf2 {[%clk 0:00:01.9]}
80... Kd3 {[%clk 0:00:06.9]} 81. Kf3 {[%clk 0:00:01.9]} 81... Kd4 {[%clk
0:00:07.4]} 82. Kf2 {[%clk 0:00:02]} 82... Ke4 {[%clk 0:00:07.9]} 83. Ke2 {[%clk
0:00:02.3]} 83... Kf4 {[%clk 0:00:08.4]} 84. Kf2 {[%clk 0:00:02.7]} 84... Kxg4
{[%clk 0:00:09.1]} 85. Kg2 {[%clk 0:00:03.1]} 85... Kh4 {[%clk 0:00:09.9]} 86.
Kh2 {[%clk 0:00:03.5]} 86... g4 {[%clk 0:00:10.2]} 87. Kg2 {[%clk 0:00:02.7]}
87... g3 {[%clk 0:00:10.6]} 88. Kg1 {[%clk 0:00:02.2]} 88... Kh3 {[%clk
0:00:11.5]} 89. Kh1 {[%clk 0:00:02.4]} 89... Kg4 {[%clk 0:00:12.4]} 90. Kg2
{[%clk 0:00:02.2]} 90... Kf4 {[%clk 0:00:13.3]} 91. Kf1 {[%clk 0:00:01]} 91...
Kf3 {[%clk 0:00:13.6]} 92. Kg1 {[%clk 0:00:01.4]} 92... Ke3 {[%clk 0:00:14.5]}
93. Kg2 {[%clk 0:00:01.2]} 93... Kf4 {[%clk 0:00:15.4]} 94. Kf1 {[%clk
0:00:01.1]} 94... Kf3 {[%clk 0:00:16.3]} 95. Kg1 {[%clk 0:00:01.2]} 95... g2
{[%clk 0:00:17.2]} 96. Kh2 {[%clk 0:00:01.2]} 96... Kf2 {[%clk 0:00:18.1]} 97.
Kh3 {[%clk 0:00:01.2]} 97... g1=Q {[%clk 0:00:19]} 0-1

[Event "Late-Titled-Tuesday-Blitz-June-18-2024"]
[Site "Chess.com"]
[Date "2024.06.18"]
[Round "4"]
[White "amintabatabaei"]
[Black "ameetghasi100"]
[Result "1-0"]
[WhiteElo "3035"]
[BlackElo "2752"]
[TimeControl "180+1"]
[EndTime "14:44:04 PDT"]
[Termination "amintabatabaei won on time"]

1. d4 {[%clk 0:03:00.9]} 1... Nf6 {[%clk 0:02:59.9]} 2. Nf3 {[%clk 0:03:00.8]}
2... g6 {[%clk 0:03:00.5]} 3. Bg5 {[%clk 0:03:01]} 3... h6 {[%clk 0:03:00.4]} 4.
Bxf6 {[%clk 0:03:00.6]} 4... exf6 {[%clk 0:03:01]} 5. e3 {[%clk 0:02:59.9]} 5...
Bg7 {[%clk 0:03:01.2]} 6. c4 {[%clk 0:02:59.1]} 6... O-O {[%clk 0:03:01.6]} 7.
Nc3 {[%clk 0:02:59.9]} 7... f5 {[%clk 0:03:02.1]} 8. g3 {[%clk 0:03:00.1]} 8...
c5 {[%clk 0:03:00.9]} 9. Bg2 {[%clk 0:03:00.4]} 9... cxd4 {[%clk 0:03:00.4]} 10.
Nxd4 {[%clk 0:03:00.3]} 10... Nc6 {[%clk 0:03:00.6]} 11. Nde2 {[%clk 0:02:55]}
11... a6 {[%clk 0:02:53.2]} 12. O-O {[%clk 0:02:54.5]} 12... b5 {[%clk
0:02:52.6]} 13. cxb5 {[%clk 0:02:54.5]} 13... axb5 {[%clk 0:02:53.1]} 14. Nxb5
{[%clk 0:02:55.4]} 14... Bxb2 {[%clk 0:02:52.3]} 15. Rb1 {[%clk 0:02:56]} 15...
Bg7 {[%clk 0:02:47.8]} 16. a4 {[%clk 0:02:56.3]} 16... Qa5 {[%clk 0:02:43.3]}
17. Ned4 {[%clk 0:02:43.3]} 17... Qxa4 {[%clk 0:02:17.1]} 18. Nxc6 {[%clk
0:02:43.2]} 18... dxc6 {[%clk 0:02:15.9]} 19. Bxc6 {[%clk 0:02:44.1]} 19... Qxd1
{[%clk 0:02:01.2]} 20. Rfxd1 {[%clk 0:02:45]} 20... Rb8 {[%clk 0:02:01.9]} 21.
Nd4 {[%clk 0:02:41.5]} 21... Ba6 {[%clk 0:01:39.4]} 22. Bf3 {[%clk 0:02:23.7]}
22... Bc4 {[%clk 0:01:31.9]} 23. Rbc1 {[%clk 0:02:20.4]} 23... Ba2 {[%clk
0:01:19.7]} 24. Nc6 {[%clk 0:02:20.4]} 24... Rb2 {[%clk 0:01:17.7]} 25. Bd5
{[%clk 0:02:16.1]} 25... Bf6 {[%clk 0:01:10.8]} 26. Bxa2 {[%clk 0:01:58.6]}
26... Rxa2 {[%clk 0:01:11.4]} 27. Nb4 {[%clk 0:01:59.5]} 27... Ra7 {[%clk
0:01:03.6]} 28. Rc6 {[%clk 0:01:57.7]} 28... Be7 {[%clk 0:00:48.8]} 29. Nd5
{[%clk 0:01:56.5]} 29... Kg7 {[%clk 0:00:48.4]} 30. Nf4 {[%clk 0:01:50.4]} 30...
Rd8 {[%clk 0:00:46.5]} 31. Rxd8 {[%clk 0:01:50.3]} 31... Bxd8 {[%clk 0:00:47.1]}
32. Kg2 {[%clk 0:01:51.2]} 32... h5 {[%clk 0:00:47.1]} 33. h4 {[%clk 0:01:51.1]}
33... Rd7 {[%clk 0:00:45.6]} 34. Kf3 {[%clk 0:01:51]} 34... Bc7 {[%clk
0:00:44.5]} 35. Nh3 {[%clk 0:01:51.7]} 35... Bd8 {[%clk 0:00:44.4]} 36. Ra6
{[%clk 0:01:52]} 36... Bf6 {[%clk 0:00:44.1]} 37. Nf4 {[%clk 0:01:52.5]} 37...
Be5 {[%clk 0:00:44.5]} 38. Ne2 {[%clk 0:01:52.8]} 38... Rd2 {[%clk 0:00:43.4]}
39. Ra4 {[%clk 0:01:51.8]} 39... Rd7 {[%clk 0:00:43.2]} 40. Rc4 {[%clk
0:01:51.8]} 40... Re7 {[%clk 0:00:43.1]} 41. Rc2 {[%clk 0:01:49.5]} 41... Rd7
{[%clk 0:00:43.2]} 42. Nd4 {[%clk 0:01:48.6]} 42... Kf6 {[%clk 0:00:38.8]} 43.
Nb3 {[%clk 0:01:37.1]} 43... Rc7 {[%clk 0:00:37.5]} 44. Ra2 {[%clk 0:01:34.2]}
44... Rc3 {[%clk 0:00:35]} 45. Nd2 {[%clk 0:01:34.1]} 45... Kg7 {[%clk
0:00:33.2]} 46. Kg2 {[%clk 0:01:34]} 46... Bf6 {[%clk 0:00:32.4]} 47. Nf3 {[%clk
0:01:34.2]} 47... Rd3 {[%clk 0:00:32.7]} 48. Ra7 {[%clk 0:01:33.3]} 48... Rd1
{[%clk 0:00:30.8]} 49. Rb7 {[%clk 0:01:33.2]} 49... Rd5 {[%clk 0:00:30.6]} 50.
Kf1 {[%clk 0:01:33.3]} 50... Rd1+ {[%clk 0:00:29.9]} 51. Ke2 {[%clk 0:01:33.9]}
51... Ra1 {[%clk 0:00:30.4]} 52. Rd7 {[%clk 0:01:31.1]} 52... Ra2+ {[%clk
0:00:30.2]} 53. Kf1 {[%clk 0:01:30.8]} 53... Ra1+ {[%clk 0:00:30.4]} 54. Kg2
{[%clk 0:01:31.4]} 54... Ra2 {[%clk 0:00:30.6]} 55. Nd4 {[%clk 0:01:31.5]} 55...
Ra6 {[%clk 0:00:29.9]} 56. Kf3 {[%clk 0:01:30.5]} 56... Be5 {[%clk 0:00:28.3]}
57. Rb7 {[%clk 0:01:27]} 57... Rd6 {[%clk 0:00:22.6]} 58. Nb3 {[%clk 0:01:26.2]}
58... Rc6 {[%clk 0:00:21.7]} 59. Rb5 {[%clk 0:01:21.3]} 59... Bf6 {[%clk
0:00:21.7]} 60. Nc5 {[%clk 0:01:20.7]} 60... Be7 {[%clk 0:00:22]} 61. Nd3 {[%clk
0:01:20.8]} 61... Bf6 {[%clk 0:00:22.4]} 62. Nb4 {[%clk 0:01:20.7]} 62... Rd6
{[%clk 0:00:22]} 63. Nd5 {[%clk 0:01:21.3]} 63... Rd7 {[%clk 0:00:21.8]} 64. Kf4
{[%clk 0:01:18.8]} 64... Rd6 {[%clk 0:00:21.1]} 65. Kf3 {[%clk 0:01:14.5]} 65...
Rd7 {[%clk 0:00:21.2]} 66. e4 {[%clk 0:01:14.4]} 66... fxe4+ {[%clk 0:00:21.4]}
67. Kxe4 {[%clk 0:01:15.3]} 67... Rd6 {[%clk 0:00:21.7]} 68. Rb7 {[%clk
0:01:11.4]} 68... Re6+ {[%clk 0:00:21.8]} 69. Kf3 {[%clk 0:01:12]} 69... Rd6
{[%clk 0:00:20.7]} 70. Nf4 {[%clk 0:01:12.5]} 70... Be5 {[%clk 0:00:20.4]} 71.
Ne2 {[%clk 0:01:12.5]} 71... Rf6+ {[%clk 0:00:20.5]} 72. Kg2 {[%clk 0:01:12.1]}
72... Re6 {[%clk 0:00:21.2]} 73. Rb5 {[%clk 0:01:11.3]} 73... Re7 {[%clk
0:00:20.8]} 74. Ng1 {[%clk 0:01:11.6]} 74... Re6 {[%clk 0:00:20.7]} 75. Nh3
{[%clk 0:01:12.2]} 75... Re7 {[%clk 0:00:20.4]} 76. Ng5 {[%clk 0:01:12.6]} 76...
Bf6 {[%clk 0:00:20.8]} 77. Nf3 {[%clk 0:01:13.2]} 77... Re2 {[%clk 0:00:20.7]}
78. Kf1 {[%clk 0:01:12.8]} 78... Ra2 {[%clk 0:00:21]} 79. Rd5 {[%clk 0:01:12.8]}
79... Ra1+ {[%clk 0:00:21.2]} 80. Kg2 {[%clk 0:01:12.4]} 80... Ra2 {[%clk
0:00:21.8]} 81. Nd2 {[%clk 0:01:13.1]} 81... Ra4 {[%clk 0:00:21]} 82. Kf3 {[%clk
0:01:13.3]} 82... Rd4 {[%clk 0:00:20.9]} 83. Rxd4 {[%clk 0:01:12.6]} 83... Bxd4
{[%clk 0:00:21.6]} 84. Ne4 {[%clk 0:01:13.1]} 84... Be5 {[%clk 0:00:22]} 85. Ke3
{[%clk 0:01:13]} 85... Bb8 {[%clk 0:00:22]} 86. Ng5 {[%clk 0:01:12]} 86... Ba7+
{[%clk 0:00:21.8]} 87. Kf3 {[%clk 0:01:12.4]} 87... Bb6 {[%clk 0:00:22]} 88. Nh3
{[%clk 0:01:13]} 88... Bc7 {[%clk 0:00:22.4]} 89. Ke4 {[%clk 0:01:13.5]} 89...
Bb6 {[%clk 0:00:22.5]} 90. Kd3 {[%clk 0:01:10.7]} 90... Kf6 {[%clk 0:00:22.3]}
91. Ke2 {[%clk 0:01:10.1]} 91... Kf5 {[%clk 0:00:22.7]} 92. Kf3 {[%clk 0:01:10]}
92... Kf6 {[%clk 0:00:22.8]} 93. Nf4 {[%clk 0:01:09.9]} 93... Ba7 {[%clk
0:00:22.3]} 94. Nd3 {[%clk 0:01:09.8]} 94... Ke6 {[%clk 0:00:22.3]} 95. Kf4
{[%clk 0:01:09.6]} 95... Bb8+ {[%clk 0:00:22.3]} 96. Kg5 {[%clk 0:01:09.9]}
96... Bd6 {[%clk 0:00:21.7]} 97. Nf4+ {[%clk 0:01:01.2]} 97... Bxf4+ {[%clk
0:00:19.7]} 98. gxf4 {[%clk 0:01:02.1]} 98... Ke7 {[%clk 0:00:05.7]} 99. f5
{[%clk 0:01:02.3]} 99... gxf5 {[%clk 0:00:02.6]} 100. Kxf5 {[%clk 0:01:02.6]}
100... Kf8 {[%clk 0:00:03.2]} 101. Kg5 {[%clk 0:00:58]} 101... Kg7 {[%clk
0:00:03.6]} 102. Kxh5 {[%clk 0:00:56.7]} 102... Kh7 {[%clk 0:00:04]} 103. Kg5
{[%clk 0:00:56.7]} 103... Kg7 {[%clk 0:00:04.5]} 104. f4 {[%clk 0:00:55.6]}
104... f6+ {[%clk 0:00:04.8]} 105. Kf5 {[%clk 0:00:55.9]} 105... Kf7 {[%clk
0:00:05.5]} 106. h5 {[%clk 0:00:56.2]} 106... Kg7 {[%clk 0:00:06.1]} 107. h6+
{[%clk 0:00:57.1]} 107... Kxh6 {[%clk 0:00:06.4]} 108. Kxf6 {[%clk 0:00:58]}
108... Kh7 {[%clk 0:00:07]} 109. f5 {[%clk 0:00:58.3]} 109... Kg8 {[%clk
0:00:07.7]} 110. Ke7 {[%clk 0:00:59]} 110... Kh7 {[%clk 0:00:08.5]} 111. f6
{[%clk 0:00:59.9]} 1-0

[Event "Late-Titled-Tuesday-Blitz-June-18-2024"]
[Site "Chess.com"]
[Date "2024.06.18"]
[Round "4"]
[White "moro182"]
[Black "malakismayil"]
[Result "1/2-1/2"]
[WhiteElo "2910"]
[BlackElo "2566"]
[TimeControl "180+1"]
[EndTime "14:44:25 PDT"]
[Termination "Game drawn - insufficient material"]

1. d4 {[%clk 0:03:00.9]} 1... d5 {[%clk 0:02:58.5]} 2. Bf4 {[%clk 0:02:58.7]}
2... e6 {[%clk 0:02:58.1]} 3. e3 {[%clk 0:02:59.1]} 3... Nf6 {[%clk 0:02:57.2]}
4. Nf3 {[%clk 0:02:59.5]} 4... Bd6 {[%clk 0:02:36.4]} 5. Nbd2 {[%clk 0:02:51.2]}
5... O-O {[%clk 0:02:31.5]} 6. Bd3 {[%clk 0:02:49.8]} 6... c5 {[%clk 0:02:31]}
7. dxc5 {[%clk 0:02:48.5]} 7... Bxc5 {[%clk 0:02:28.9]} 8. O-O {[%clk
0:02:47.3]} 8... Nc6 {[%clk 0:02:25.1]} 9. e4 {[%clk 0:02:46]} 9... dxe4 {[%clk
0:01:37]} 10. Nxe4 {[%clk 0:02:46.9]} 10... Nxe4 {[%clk 0:01:37.2]} 11. Bxe4
{[%clk 0:02:47.8]} 11... Qf6 {[%clk 0:01:36.1]} 12. Bc1 {[%clk 0:02:22.1]} 12...
Rd8 {[%clk 0:01:31.1]} 13. Qe2 {[%clk 0:02:20.7]} 13... h6 {[%clk 0:01:31]} 14.
c3 {[%clk 0:02:16.2]} 14... Bd7 {[%clk 0:01:22.2]} 15. Be3 {[%clk 0:02:14]}
15... Bxe3 {[%clk 0:01:17]} 16. Qxe3 {[%clk 0:02:14.9]} 16... Be8 {[%clk
0:01:14.6]} 17. h3 {[%clk 0:01:54.6]} 17... b6 {[%clk 0:01:00.8]} 18. Rad1
{[%clk 0:01:34.8]} 18... Rac8 {[%clk 0:00:47.1]} 19. Rfe1 {[%clk 0:01:29]} 19...
Na5 {[%clk 0:00:38.7]} 20. Ne5 {[%clk 0:01:25.4]} 20... Kf8 {[%clk 0:00:26.3]}
21. Bf3 {[%clk 0:01:15.5]} 21... Rxd1 {[%clk 0:00:22.7]} 22. Rxd1 {[%clk
0:01:16.4]} 22... Nc4 {[%clk 0:00:21.1]} 23. Nxc4 {[%clk 0:01:13.4]} 23... Rxc4
{[%clk 0:00:22]} 24. Qd3 {[%clk 0:01:05.8]} 24... Rc8 {[%clk 0:00:20]} 25. Bb7
{[%clk 0:01:02]} 25... Rc7 {[%clk 0:00:16.7]} 26. Qd6+ {[%clk 0:01:00.5]} 26...
Qe7 {[%clk 0:00:17.3]} 27. Be4 {[%clk 0:00:54.6]} 27... Qxd6 {[%clk 0:00:17.3]}
28. Rxd6 {[%clk 0:00:55.2]} 28... Ke7 {[%clk 0:00:18.2]} 29. Rd2 {[%clk
0:00:54]} 29... Bc6 {[%clk 0:00:18.9]} 30. Bxc6 {[%clk 0:00:50.8]} 30... Rxc6
{[%clk 0:00:19.8]} 31. Kf1 {[%clk 0:00:50.9]} 31... Rd6 {[%clk 0:00:20.1]} 32.
Rc2 {[%clk 0:00:49.5]} 32... Rd1+ {[%clk 0:00:19.4]} 33. Ke2 {[%clk 0:00:49.9]}
33... Rg1 {[%clk 0:00:20.2]} 34. Kf3 {[%clk 0:00:48.1]} 34... Rd1 {[%clk
0:00:20]} 35. c4 {[%clk 0:00:48.1]} 35... Rd7 {[%clk 0:00:19.3]} 36. b3 {[%clk
0:00:43.4]} 36... Kd6 {[%clk 0:00:18.1]} 37. b4 {[%clk 0:00:41.7]} 37... Kc6
{[%clk 0:00:18.1]} 38. Ke4 {[%clk 0:00:40.8]} 38... Rd1 {[%clk 0:00:14.4]} 39.
c5 {[%clk 0:00:39.6]} 39... Rb1 {[%clk 0:00:05.4]} 40. a3 {[%clk 0:00:32.2]}
40... Rb3 {[%clk 0:00:03.5]} 41. cxb6+ {[%clk 0:00:22.4]} 41... Kxb6 {[%clk
0:00:04.4]} 42. Ra2 {[%clk 0:00:20.3]} 42... Rc3 {[%clk 0:00:04.4]} 43. Kd4
{[%clk 0:00:18]} 43... Rc1 {[%clk 0:00:04.3]} 44. a4 {[%clk 0:00:18.3]} 44...
Rb1 {[%clk 0:00:03.8]} 45. Kc3 {[%clk 0:00:18]} 45... Rc1+ {[%clk 0:00:03.9]}
46. Kb3 {[%clk 0:00:18.3]} 46... Rb1+ {[%clk 0:00:03.4]} 47. Kc4 {[%clk
0:00:18.8]} 47... Rc1+ {[%clk 0:00:03.8]} 48. Kd4 {[%clk 0:00:18.5]} 48... Rd1+
{[%clk 0:00:04]} 49. Ke5 {[%clk 0:00:18.6]} 49... Rd5+ {[%clk 0:00:04]} 50. Ke4
{[%clk 0:00:18.8]} 50... Rd1 {[%clk 0:00:04.7]} 51. Rc2 {[%clk 0:00:16.1]} 51...
Rd7 {[%clk 0:00:04.1]} 52. g4 {[%clk 0:00:14.6]} 52... Rd1 {[%clk 0:00:03.6]}
53. f4 {[%clk 0:00:13.2]} 53... Rd7 {[%clk 0:00:04.1]} 54. Rc5 {[%clk
0:00:10.1]} 54... Rd1 {[%clk 0:00:03.9]} 55. a5+ {[%clk 0:00:10.6]} 55... Kb7
{[%clk 0:00:03.9]} 56. Ke5 {[%clk 0:00:11.2]} 56... Rb1 {[%clk 0:00:02.4]} 57.
Rc4 {[%clk 0:00:08.8]} 57... Rd1 {[%clk 0:00:02.8]} 58. f5 {[%clk 0:00:08.2]}
58... Rd5+ {[%clk 0:00:01.7]} 59. Ke4 {[%clk 0:00:08.1]} 59... Rd7 {[%clk
0:00:02.3]} 60. fxe6 {[%clk 0:00:08.2]} 60... fxe6 {[%clk 0:00:03.2]} 61. Ke5
{[%clk 0:00:08.7]} 61... Rd3 {[%clk 0:00:02.4]} 62. h4 {[%clk 0:00:07.3]} 62...
Re3+ {[%clk 0:00:03.1]} 63. Kd6 {[%clk 0:00:07.2]} 63... Ka6 {[%clk 0:00:03.1]}
64. Kc6 {[%clk 0:00:04.6]} 64... Rg3 {[%clk 0:00:01.7]} 65. h5 {[%clk
0:00:03.6]} 65... Re3 {[%clk 0:00:01.5]} 66. Kd6 {[%clk 0:00:02.1]} 66... Re2
{[%clk 0:00:01.6]} 67. Kc5 {[%clk 0:00:02.2]} 67... e5 {[%clk 0:00:01.9]} 68.
Kc6 {[%clk 0:00:02.7]} 68... e4 {[%clk 0:00:02.3]} 69. Rc3 {[%clk 0:00:03]}
69... Rb2 {[%clk 0:00:01.5]} 70. Rc5 {[%clk 0:00:02.5]} 70... Rxb4 {[%clk
0:00:01.6]} 71. Re5 {[%clk 0:00:03.2]} 71... Ra4 {[%clk 0:00:02]} 72. Re6 {[%clk
0:00:03.4]} 72... Kxa5 {[%clk 0:00:01.6]} 73. Re5+ {[%clk 0:00:03.8]} 73... Ka6
{[%clk 0:00:02.2]} 74. Re7 {[%clk 0:00:03.1]} 74... Rc4+ {[%clk 0:00:02.4]} 75.
Kd5 {[%clk 0:00:02.4]} 75... Rb4 {[%clk 0:00:02.9]} 76. Rxg7 {[%clk 0:00:02.9]}
76... e3 {[%clk 0:00:03.4]} 77. Rg6+ {[%clk 0:00:03.5]} 77... Ka5 {[%clk
0:00:03.5]} 78. Rxh6 {[%clk 0:00:04.2]} 78... Rxg4 {[%clk 0:00:03.7]} 79. Re6
{[%clk 0:00:04.7]} 79... Rh4 {[%clk 0:00:03.9]} 80. Re5 {[%clk 0:00:03.8]} 80...
Kb5 {[%clk 0:00:03.2]} 81. Ke6+ {[%clk 0:00:03.1]} 81... Kc6 {[%clk 0:00:03.3]}
82. Kf6 {[%clk 0:00:03]} 82... a6 {[%clk 0:00:02.1]} 83. Kg6 {[%clk 0:00:03]}
83... Rh3 {[%clk 0:00:02.7]} 84. h6 {[%clk 0:00:02.7]} 84... Kb6 {[%clk
0:00:02.2]} 85. Re6+ {[%clk 0:00:03]} 85... Kb5 {[%clk 0:00:02.3]} 86. h7 {[%clk
0:00:03.9]} 86... a5 {[%clk 0:00:02.3]} 87. Re5+ {[%clk 0:00:04.5]} 87... Kb4
{[%clk 0:00:02.6]} 88. Rh5 {[%clk 0:00:05.2]} 88... Rg3+ {[%clk 0:00:02.9]} 89.
Kh6 {[%clk 0:00:04.8]} 89... e2 {[%clk 0:00:02.8]} 90. h8=Q {[%clk 0:00:05.4]}
90... e1=Q {[%clk 0:00:02.7]} 91. Qd4+ {[%clk 0:00:05.8]} 91... Kb3 {[%clk
0:00:02.8]} 92. Rb5+ {[%clk 0:00:05.6]} 92... Ka2 {[%clk 0:00:02.5]} 93. Qc4+
{[%clk 0:00:04.6]} 93... Ka3 {[%clk 0:00:02]} 94. Qc5+ {[%clk 0:00:03.8]} 94...
Ka4 {[%clk 0:00:01.3]} 95. Qc4+ {[%clk 0:00:04]} 95... Ka3 {[%clk 0:00:01.9]}
96. Qc5+ {[%clk 0:00:03.9]} 96... Ka4 {[%clk 0:00:02.4]} 97. Rxa5+ {[%clk
0:00:04.2]} 97... Qxa5 {[%clk 0:00:01.6]} 98. Qc2+ {[%clk 0:00:04.8]} 98... Kb4
{[%clk 0:00:01.6]} 99. Qd2+ {[%clk 0:00:05]} 99... Kb5 {[%clk 0:00:02.3]} 100.
Qe2+ {[%clk 0:00:04.7]} 100... Kb6 {[%clk 0:00:02.3]} 101. Qf2+ {[%clk
0:00:04.2]} 101... Qc5 {[%clk 0:00:02.8]} 102. Qxg3 {[%clk 0:00:04.8]} 102...
Qc6+ {[%clk 0:00:03.3]} 103. Kg7 {[%clk 0:00:05.2]} 103... Qc7+ {[%clk
0:00:03.7]} 104. Qxc7+ {[%clk 0:00:03.8]} 104... Kxc7 {[%clk 0:00:04.6]} 1/2-1/2

[Event "Late-Titled-Tuesday-Blitz-June-18-2024"]
[Site "Chess.com"]
[Date "2024.06.18"]
[Round "5"]
[White "Kaustubh_Kodihalli"]
[Black "GothamChess"]
[Result "0-1"]
[WhiteElo "2384"]
[BlackElo "2725"]
[TimeControl "180+1"]
[EndTime "14:53:14 PDT"]
[Termination "GothamChess won by resignation"]

1. e4 {[%clk 0:03:00.9]} 1... d5 {[%clk 0:03:00.2]} 2. exd5 {[%clk 0:03:00.1]}
2... Qxd5 {[%clk 0:03:01.1]} 3. d4 {[%clk 0:03:00.5]} 3... e5 {[%clk 0:03:00.3]}
4. dxe5 {[%clk 0:03:00]} 4... Qxd1+ {[%clk 0:02:59.8]} 5. Kxd1 {[%clk
0:03:00.9]} 5... Nc6 {[%clk 0:03:00.3]} 6. Nf3 {[%clk 0:02:59.5]} 6... f6 {[%clk
0:03:00.8]} 7. exf6 {[%clk 0:02:58.1]} 7... Nxf6 {[%clk 0:03:00.5]} 8. Nc3
{[%clk 0:02:57]} 8... Bg4 {[%clk 0:03:00.4]} 9. Be3 {[%clk 0:02:53.8]} 9...
O-O-O+ {[%clk 0:02:58.8]} 10. Kc1 {[%clk 0:02:52.6]} 10... Bb4 {[%clk
0:02:57.9]} 11. a3 {[%clk 0:02:45]} 11... Bxc3 {[%clk 0:02:57]} 12. bxc3 {[%clk
0:02:45.9]} 12... Ne4 {[%clk 0:02:44.2]} 13. Kb2 {[%clk 0:02:43.2]} 13... Rhf8
{[%clk 0:02:35.2]} 14. Bd3 {[%clk 0:02:40.4]} 14... Nd6 {[%clk 0:02:25.8]} 15.
Nd4 {[%clk 0:02:15.6]} 15... Ne5 {[%clk 0:02:18.1]} 16. Rad1 {[%clk 0:02:02.4]}
16... Bxd1 {[%clk 0:02:17.1]} 17. Rxd1 {[%clk 0:01:58.6]} 17... Nec4+ {[%clk
0:02:15.7]} 18. Bxc4 {[%clk 0:01:54.8]} 18... Nxc4+ {[%clk 0:02:15.9]} 19. Kb3
{[%clk 0:01:55.5]} 19... Nxe3 {[%clk 0:02:15.9]} 20. fxe3 {[%clk 0:01:55.2]}
20... c5 {[%clk 0:02:16.4]} 0-1